bitfinex-derivatives/quotes_ETHF0:USTF0_20250126
["timestamp","ask_amount","ask_price","bid_price","bid_amount"]
[1737860526216,0.02741985,3332.6,3332.4,5.26278726]
[1737860527215,0.02741985,3332.5,3332.4,5.26278726]
[1737860527415,0.02741985,3332.5,3332.4,3.2078]
[1737860528128,0.02741985,3332.5,3332.2,0.00450572]
[1737860528316,0.02741985,3332.4,3332.2,0.00450572]
[1737860529226,0.6808,3332.5,3332.2,0.00450572]
[1737860529531,0.02741985,3332.3,3332.2,0.00450572]
[1737860530829,0.02741985,3332.3,3332.2,0.60484572]
[1737860534829,0.02741985,3332.3,3332.2,0.00450572]
[1737860536824,0.62773985,3332.3,3332.2,0.00450572]
[1737860537822,0.02741985,3332.3,3332.2,0.00450572]
[1737860538822,0.02741985,3332.3,3332.2,5.19954572]
[1737860541734,0.00448222,3332.8,3332.7,0.60025]
[1737860542035,0.00448222,3332.8,3332.7,5.86303726]
[1737860543837,0.7315,3333.7,3333.4,0.60012]
[1737860544038,0.7315,3333.7,3333.6,2.05498726]
[1737860544936,0.7315,3333.7,3333.6,2.65507726]
[1737860545129,0.7284,3333.8,3333.6,2.05498726]
[1737860545331,0.7284,3334.1,3333.7,3.80786]
[1737860545536,0.7284,3334.1,3334.0,2.05498726]
[1737860546340,0.7284,3334.1,3333.7,5.86284726]
[1737860546534,1.32841,3334.1,3333.7,5.86284726]
[1737860547832,1.32841,3334.1,3333.8,0.60004]
[1737860548042,0.7284,3334.1,3333.7,5.26278726]
[1737860548231,0.7284,3334.1,3333.8,0.60005]
[1737860548537,1.3284,3334.1,3333.8,0.60005]
[1737860548732,0.7284,3334.1,3333.8,0.60005]
[1737860551238,0.00162242,3333.9,3333.8,0.60005]
[1737860555348,0.00162242,3333.9,3333.7,5.86284726]
[1737860557536,0.00162242,3333.9,3333.7,2.05498726]
[1737860557738,0.00162242,3333.9,3333.7,2.65503726]
[1737860557943,0.00162242,3333.9,3333.8,0.60005]
[1737860565052,0.00162242,3333.9,3333.7,5.86283726]
[1737860565252,0.00162242,3333.9,3333.8,0.60005]
[1737860574052,0.00162242,3333.9,3333.8,2.65503726]
[1737860581053,1.4251,3334.4,3334.3,0.59996]
[1737860581253,1.4251,3334.4,3334.3,2.05498726]
[1737860582452,1.4251,3334.4,3334.3,2.76288726]
[1737860583363,1.4251,3334.4,3334.3,3.36284726]
[1737860583364,0.7358,3334.4,3334.3,3.36284726]
[1737860583864,0.6894,3334.7,3334.5,0.59991]
[1737860584057,0.6894,3334.7,3334.6,2.77728726]
[1737860586663,0.6894,3334.7,3334.6,3.37719726]
[1737860588063,0.7401,3334.8,3334.7,0.59989]
[1737860588560,0.7401,3334.8,3334.7,1.27779]
[1737860589368,1.31551,3335.2,3334.7,0.6779]
[1737860589566,0.7187,3335.1,3334.9,2.05498726]
[1737860589870,0.7187,3335.1,3335.0,3.80764]
[1737860590058,0.7187,3335.1,3335.0,0.59984]
[1737860590264,1.3155,3335.2,3334.9,2.05498726]
[1737860590265,3.2078,3335.7,3335.1,0.59981]
[1737860590465,0.7064,3335.2,3335.1,0.59981]
[1737860591070,0.7064,3335.2,3335.1,1.29071]
[1737860592166,1.4478,3335.6,3335.1,0.6909]
[1737860592371,2.1542,3335.6,3335.4,0.59976]
[1737860592674,2.1542,3335.6,3335.1,0.6909]
[1737860592868,2.1542,3335.6,3335.4,0.59976]
[1737860593072,2.1542,3335.6,3335.1,0.6909]
[1737860593268,1.4251,3335.6,3335.1,0.6909]
[1737860593671,1.4251,3335.6,3335.5,0.59975]
[1737860593871,1.4251,3335.6,3335.1,0.6909]
[1737860594067,0.59982,3335.2,3335.0,2.05498726]
[1737860594374,0.59982,3335.2,3334.9,3.80764]
[1737860594375,0.59984,3335.0,3334.8,0.59986]
[1737860594863,0.6711,3335.0,3334.7,2.76088726]
[1737860595066,1.27094,3335.0,3334.7,3.36076726]
[1737860595466,1.27094,3335.0,3334.7,2.05498726]
[1737860595669,1.27094,3335.0,3334.5,3.2078]
[1737860595670,0.6711,3335.0,3334.5,3.2078]
[1737860595875,0.6711,3335.0,3334.6,0.5999]
[1737860596073,1.27095,3335.0,3334.7,2.05498726]
[1737860596670,4.6136,3335.1,3334.7,2.05498726]
[1737860596969,5.21343,3335.1,3334.7,2.65486726]
[1737860597968,4.6136,3335.1,3334.9,0.59985]
[1737860598468,4.6136,3335.1,3334.7,2.05498726]
[1737860598469,5.21342,3335.1,3334.8,0.59986]
[1737860599479,2.00562,3335.1,3334.8,0.59986]
[1737860601577,0.59984,3335.0,3334.8,0.59986]
[1737860602371,0.59984,3335.0,3334.7,2.65486726]
[1737860604678,1.30304,3335.0,3334.7,2.65486726]
[1737860606373,0.7032,3335.0,3334.5,3.2078]
[1737860606775,0.5999,3334.7,3334.5,3.2078]
[1737860607179,0.7059,3334.6,3334.5,3.2078]
[1737860610783,1.30581,3334.6,3334.5,3.2078]
[1737860610978,0.7059,3334.6,3334.5,3.2078]
[1737860611488,2.03161,3334.6,3334.5,3.2078]
[1737860611788,1.4317,3334.6,3334.5,3.2078]
[1737860612382,2.03161,3334.6,3334.5,3.2078]
[1737860612585,2.03161,3334.6,3334.3,4.06064726]
[1737860612885,1.4317,3334.6,3334.3,4.06064726]
[1737860613186,1.4317,3334.6,3334.4,0.59994]
[1737860613887,1.4317,3334.6,3334.1,3.2078]
[1737860614086,0.6,3334.1,3334.0,0.00449863]
[1737860615779,3.2078,3334.4,3334.0,0.00449863]
[1737860615975,0.59997,3334.3,3334.0,2.05948589]
[1737860616375,3.2078,3334.4,3334.0,2.05948589]
[1737860616581,3.2078,3334.4,3334.1,1.27249]
[1737860617084,3.2078,3334.4,3334.2,0.7111]
[1737860617285,3.80774,3334.4,3334.3,0.7029]
[1737860617589,1.4317,3334.6,3334.3,0.7029]
[1737860617590,0.59994,3334.5,3334.3,0.7029]
[1737860618291,0.59994,3334.4,3334.3,0.7029]
[1737860619193,2.03162,3334.6,3334.3,1.30285]
[1737860619491,0.59993,3334.5,3334.3,1.30286]
[1737860620392,0.59994,3334.4,3334.3,0.7029]
[1737860620583,0.59993,3334.5,3334.3,0.7029]
[1737860621385,0.59994,3334.4,3334.3,0.7029]
[1737860621794,0.59996,3334.3,3334.2,0.7111]
[1737860622288,0.59998,3334.2,3334.1,0.6725]
[1737860622484,0.6,3334.1,3334.0,1.38469863]
[1737860623385,0.7112,3334.2,3334.0,1.38469863]
[1737860623587,1.31119,3334.2,3334.0,1.38469863]
[1737860623798,0.6,3334.1,3334.0,1.38469863]
[1737860624090,1.31119,3334.2,3334.0,1.38469863]
[1737860627887,0.7112,3334.2,3334.0,1.38469863]
[1737860628397,1.31119,3334.2,3334.0,1.38469863]
[1737860628790,0.7112,3334.2,3334.0,1.38469863]
[1737860630489,1.31119,3334.2,3334.0,1.38469863]
[1737860630692,0.7135,3334.1,3334.0,0.00449863]
[1737860633793,0.60008,3333.7,3333.3,3.80793]
[1737860633999,0.60008,3333.7,3333.4,0.7409]
[1737860634000,0.6977,3333.6,3333.4,0.7409]
[1737860634302,1.29779,3333.6,3333.4,0.7409]
[1737860634497,0.6977,3333.6,3333.4,0.7409]
[1737860635304,0.00447499,3333.8,3333.5,0.60011]
[1737860637808,0.60452499,3333.8,3333.5,0.60011]
[1737860639119,0.00447499,3333.8,3333.6,0.60008]
[1737860639712,0.60453499,3333.8,3333.5,0.6001]
[1737860641514,0.60007,3333.7,3333.5,0.6001]
[1737860641711,0.60007,3333.7,3333.5,0.97253397]
[1737860641909,0.60453499,3333.8,3333.5,1.57262397]
[1737860642721,0.60453499,3333.8,3333.7,0.97253397]
[1737860644616,0.00447499,3333.8,3333.7,1.57260397]
[1737860645607,0.00447499,3333.8,3333.7,0.97253397]
[1737860645608,0.60452499,3333.8,3333.7,0.97253397]
[1737860646213,0.00447499,3333.8,3333.7,0.97253397]
[1737860646422,0.00447499,3333.8,3333.7,1.57260397]
[1737860647011,0.00447499,3333.8,3333.7,0.97253397]
[1737860647213,0.60452499,3333.8,3333.7,0.97253397]
[1737860647822,0.60008,3333.7,3333.5,1.57263397]
[1737860648022,1.28818,3333.7,3333.5,0.97253397]
[1737860648223,1.28818,3333.7,3333.5,1.57263397]
[1737860648416,0.6881,3333.7,3333.5,0.97253397]
[1737860648618,0.60009,3333.6,3333.5,0.97253397]
[1737860648816,0.60009,3333.6,3333.4,1.34101]
[1737860648817,1.33829,3333.6,3333.4,1.34101]
[1737860649613,0.7382,3333.6,3333.4,1.34101]
[1737860649819,0.7382,3333.6,3333.5,0.97253397]
[1737860653422,1.33829,3333.6,3333.5,0.97253397]
[1737860653624,1.33829,3333.6,3333.3,5.21113]
[1737860653625,0.60012,3333.4,3333.3,3.9172]
[1737860654021,0.7382,3333.6,3333.3,4.88973397]
[1737860654220,0.00447499,3333.8,3333.5,0.97253397]
[1737860654420,0.00447499,3333.8,3333.7,0.97253397]
[1737860654921,0.00447499,3333.8,3333.7,1.57260397]
[1737860657826,0.00447499,3333.8,3333.7,5.86166881]
[1737860659026,0.00447499,3333.8,3333.7,6.10540318]
[1737860660825,0.00447499,3333.8,3333.7,2.89760318]
[1737860661023,0.00447499,3333.8,3333.7,6.10540318]
[1737860662530,0.00447499,3333.8,3333.7,5.86166881]
[1737860663232,0.60452499,3333.8,3333.7,3.2078]
[1737860664034,0.60014,3333.3,3333.2,0.00449863]
[1737860666734,0.89950575,3333.3,3333.2,0.00449863]
[1737860666931,1.2818878,3333.3,3333.2,0.00449863]
[1737860667131,0.60014,3333.3,3333.2,0.00449863]
[1737860691644,3.2078,3333.4,3333.3,0.60014]
[1737860694751,3.80793,3333.4,3333.2,0.00449863]
[1737860695451,3.2078,3333.4,3333.3,0.60014]
[1737860696239,3.2078,3333.4,3333.2,0.60465863]
[1737860697753,0.60009,3333.6,3333.2,0.60465863]
[1737860698651,0.60011,3333.5,3333.2,0.60465863]
[1737860699155,0.60014,3333.4,3333.2,0.00449863]
[1737860700053,3.21227499,3333.8,3333.2,0.00449863]
[1737860700054,0.60014,3333.3,3333.2,0.00449863]
[1737860700549,0.89960084,3333.3,3333.2,0.00449863]
[1737860700750,1.28211438,3333.3,3333.2,0.00449863]
[1737860702453,5.68197438,3333.3,3332.2,0.7409]
[1737860702649,0.60029,3332.5,3332.3,1.5016]
[1737860702851,0.6003,3332.4,3332.3,1.5016]
[1737860705454,3.71499,3332.8,3332.0,0.00449863]
[1737860705755,0.60036,3332.1,3332.0,0.00449863]
[1737860706752,0.60035,3332.2,3332.0,0.00449863]
[1737860706961,1.4952,3332.8,3332.0,0.00449863]
[1737860707160,0.60028,3332.6,3332.3,0.60032]
[1737860707458,0.60028,3332.6,3332.4,0.7299]
[1737860707766,0.60028,3332.6,3332.5,0.7948]
[1737860708659,0.60029,3332.5,3332.4,0.7299]
[1737860708854,2.2613,3332.8,3332.1,4.6602]
[1737860709055,0.60034,3332.2,3332.1,3.2078]
[1737860709258,0.60036,3332.1,3332.0,0.00449863]
[1737860709455,1.34666,3332.1,3332.0,0.00449863]
[1737860711154,4.55446,3332.1,3332.0,0.00449863]
[1737860711759,1.34666,3332.1,3332.0,0.00449863]
[1737860713660,0.60035,3332.2,3332.0,0.00449863]
[1737860715064,0.60035,3332.2,3332.0,1.48879863]
[1737860715458,0.60035,3332.2,3332.1,0.7477]
[1737860719271,0.60036,3332.2,3332.0,0.00449863]
[1737860721269,0.60036,3332.1,3332.0,0.00449863]
[1737860722968,0.60036,3332.1,3331.2,0.60051]
[1737860722969,0.60038,3332.0,3331.2,0.60051]
[1737860723168,3.2078,3332.1,3331.4,0.7454]
[1737860723169,0.60041,3331.8,3331.4,0.7454]
[1737860723472,0.60047,3331.5,3331.4,0.7454]
[1737860725477,1.38944,3331.7,3331.4,0.7454]
[1737860725677,0.00449863,3331.8,3331.5,1.36536]
[1737860725869,0.60490863,3331.8,3331.5,2.13416]
[1737860729167,0.60490863,3331.8,3331.5,1.5337]
[1737860729576,0.60490863,3331.8,3331.5,2.13417]
[1737860737581,0.60490863,3331.8,3331.6,0.60045]
[1737860738678,0.00449863,3331.8,3331.7,0.60043]
[1737860744485,0.00449863,3331.8,3331.7,0.84334862]
[1737860749485,0.00449863,3331.8,3331.7,0.60043]
[1737860753783,0.00449863,3331.8,3331.7,1.57379935]
[1737860767302,0.00449863,3331.8,3331.7,4.78159935]
[1737860794616,1.4936,3332.2,3331.7,4.18116935]
[1737860794817,0.7211,3332.2,3332.1,4.78152935]
[1737860796019,0.76919863,3332.5,3332.4,0.6003]
[1737860796324,1.49669863,3332.5,3332.4,0.6003]
[1737860798616,1.49669863,3332.5,3332.4,1.57366935]
[1737860799124,0.73199863,3332.5,3332.4,1.57366935]
[1737860802820,0.73199863,3332.5,3332.1,3.2078]
[1737860803121,1.76616935,3332.4,3332.1,3.80815]
[1737860803426,0.7278,3332.3,3332.1,3.80815]
[1737860807627,0.7278,3332.3,3332.1,3.2078]
[1737860807823,0.7278,3332.3,3332.1,3.80814]
[1737860809430,0.60031,3332.4,3332.1,3.2078]
[1737860809622,1.35941,3332.4,3332.1,3.2078]
[1737860809823,0.60032,3332.3,3332.1,3.2078]
[1737860810230,1.35941,3332.4,3332.1,3.2078]
[1737860811430,0.7591,3332.4,3332.1,0.60036]
[1737860811727,0.7591,3332.4,3332.2,1.4694]
[1737860812723,0.7591,3332.4,3332.2,2.06974]
[1737860813023,3.21229863,3332.5,3332.3,0.97336935]
[1737860813227,3.21229863,3332.5,3332.4,0.6003]
[1737860815133,0.00449863,3332.5,3332.4,0.6003]
[1737860823730,0.60009,3333.6,3333.2,0.60015]
[1737860823932,0.60009,3333.6,3333.2,1.57351935]
[1737860824235,0.723,3333.4,3333.3,0.7532]
[1737860824436,0.723,3333.4,3333.3,1.35334]
[1737860824936,0.00447499,3333.7,3333.5,0.6001]
[1737860825137,0.72747499,3333.7,3333.5,1.57346935]
[1737860825939,0.72747499,3333.7,3333.5,0.97336935]
[1737860826338,1.32755499,3333.7,3333.4,1.5228]
[1737860827228,0.72747499,3333.7,3333.4,1.5228]
[1737860827639,0.72747499,3333.7,3333.6,0.60009]
[1737860828138,0.72747499,3333.7,3333.6,3.80789]
[1737860831639,0.72747499,3333.7,3333.6,3.2078]
[1737860834039,0.72747499,3333.7,3333.6,3.80789]
[1737860835246,0.00447499,3333.7,3333.6,3.80789]
[1737860846161,0.7553,3334.0,3333.9,0.60004]
[1737860846457,0.7553,3334.0,3333.9,0.97336935]
[1737860846954,0.7553,3334.0,3333.9,1.69476935]
[1737860848554,0.7553,3334.0,3333.9,2.29480935]
[1737860849152,0.7553,3334.0,3333.9,1.69476935]
[1737860849857,0.7553,3334.0,3333.9,2.29480935]
[1737860852149,0.7553,3334.0,3333.9,1.69476935]
[1737860854460,0.7553,3334.0,3333.9,2.29480935]
[1737860854661,0.7553,3334.0,3333.9,1.69476935]
[1737860854854,0.7553,3334.0,3333.9,2.29480935]
[1737860855262,1.36686,3334.4,3334.0,0.60001]
[1737860855554,1.17454164,3334.3,3334.1,0.97336935]
[1737860855754,0.7922,3334.3,3334.1,1.75846935]
[1737860856551,1.39218,3334.3,3334.1,1.75846935]
[1737860856756,0.59998,3334.2,3334.1,0.7851]
[1737860856956,0.97336935,3334.2,3333.9,0.7214]
[1737860857457,0.97336935,3334.0,3333.6,3.2078]
[1737860857656,0.60012,3333.5,3333.2,4.6738]
[1737860857854,0.60015,3333.3,3333.2,3.2078]
[1737860859558,1.5076,3333.4,3333.2,3.2078]
[1737860859764,1.5076,3333.4,3333.3,0.7338]
[1737860860061,1.5076,3333.4,3333.3,1.70716935]
[1737860860658,1.5076,3333.4,3333.3,2.30731935]
[1737860861263,0.60015,3333.3,3333.2,3.2078]
[1737860861566,1.5076,3333.4,3333.2,3.2078]
[1737860861766,0.60015,3333.3,3333.2,3.2078]
[1737860862362,2.10774,3333.4,3333.2,3.2078]
[1737860863868,0.60015,3333.3,3333.2,3.2078]
[1737860864267,2.10774,3333.4,3333.2,3.2078]
[1737860864667,1.5076,3333.4,3333.2,3.2078]
[1737860864866,0.60015,3333.3,3333.2,3.2078]
[1737860866672,2.10774,3333.4,3333.2,3.2078]
[1737860866874,2.10774,3333.4,3333.1,2.30574935]
[1737860867169,0.60018,3333.1,3333.0,0.00449863]
[1737860872272,3.80798,3333.1,3333.0,0.00449863]
[1737860877872,1.50053,3333.0,3332.0,3.2078]
[1737860878171,0.60036,3332.1,3332.0,3.2078]
[1737860879371,1.57372935,3332.1,3332.0,3.2078]
[1737860879875,0.60036,3332.1,3332.0,3.2078]
[1737860881170,1.35156,3332.1,3332.0,3.2078]
[1737860881676,0.60042,3331.8,3331.7,0.00449863]
[1737860888176,0.60042,3331.8,3330.9,3.2078]
[1737860888177,5.0,3331.8,3330.9,3.2078]
[1737860888376,0.60054,3331.1,3331.0,0.4802]
[1737860889780,0.60058,3330.9,3330.8,0.7725]
[1737860894383,0.60057,3331.0,3330.8,0.7725]
[1737860895884,3.2078,3331.3,3330.8,0.7725]
[1737860896086,3.80832,3331.3,3330.9,0.60057]
[1737860896490,3.80832,3331.3,3331.0,0.4984]
[1737860896682,3.80832,3331.3,3331.1,0.7282]
[1737860897484,3.2078,3331.3,3331.1,0.7282]
[1737860897690,3.2078,3331.3,3331.2,0.60053]
[1737860898389,3.2078,3331.7,3331.1,0.7282]
[1737860899191,3.2078,3331.7,3331.4,0.60048]
[1737860899390,3.2078,3331.7,3331.5,0.791]
[1737860899591,3.2078,3331.7,3331.6,0.60046]
[1737860900688,3.2078,3331.7,3331.5,1.90556]
[1737860901085,0.60042,3331.8,3331.5,1.90556]
[1737860901477,0.60042,3331.8,3331.5,1.3051]
[1737860901682,0.60039,3332.0,3331.7,0.60042]
[1737860901891,0.60039,3332.0,3331.8,0.7505]
[1737860902286,3.2078,3332.2,3331.8,0.7505]
[1737860902584,0.6004,3331.9,3331.8,0.7505]
[1737860903787,3.2078,3332.2,3331.8,0.7505]
[1737860903993,0.60038,3332.1,3331.8,1.35091]
[1737860904894,0.60038,3332.0,3331.8,1.35091]
[1737860905189,0.60039,3332.0,3331.8,1.35091]
[1737860907087,0.60039,3332.0,3331.8,0.7505]
[1737860907798,2.06160667,3332.4,3331.8,0.7505]
[1737860908092,0.60038,3332.1,3331.8,1.35091]
[1737860908294,0.60039,3332.0,3331.8,1.35091]
[1737860908885,0.4822,3332.3,3331.8,0.7505]
[1737860909094,0.6004,3331.9,3331.8,0.7505]
[1737860920117,0.6004,3331.9,3331.6,3.80825]
[1737860920319,0.504,3331.8,3331.6,3.2078]
[1737860920515,0.504,3331.8,3331.7,0.60044]
[1737860921217,0.504,3331.8,3331.6,3.2078]
[1737860921218,1.10442,3331.8,3331.6,3.80825]
[1737860922918,0.504,3331.8,3331.7,0.60044]
[1737860923517,0.60042,3331.9,3331.7,0.60044]
[1737860923721,0.60042,3331.9,3331.7,1.57400401]
[1737860924520,0.60042,3331.9,3331.7,4.78180401]
[1737860927925,3.13508868,3331.8,3330.9,0.97356401]
[1737860928226,0.60057,3331.0,3330.8,3.4304]
[1737860928424,0.60057,3331.0,3330.8,0.4784]
[1737860928617,1.4787,3331.2,3330.8,0.4784]
[1737860928818,0.60058,3330.9,3330.8,0.4784]
[1737860933923,0.60058,3330.9,3330.8,3.6862]
[1737860940637,1.4787,3331.2,3330.8,3.6862]
[1737860940929,0.60056,3331.1,3330.9,0.60058]
[1737860941131,0.60056,3331.1,3331.0,0.9855]
[1737860953235,1.57466425,3331.1,3331.0,0.4751]
[1737860953430,0.60058,3330.9,3330.8,0.4784]
[1737860955228,0.6006,3330.8,3330.7,0.00449863]
[1737860955429,1.1202,3330.8,3330.7,0.00449863]
[1737860957430,3.88213599,3330.8,3330.0,0.497]
[1737860957631,0.60076,3329.9,3329.5,0.60083]
[1737860957830,0.6008,3329.8,3329.6,0.497]
[1737860958033,0.6008,3329.8,3329.6,1.09782]
[1737860958829,0.60078,3329.9,3329.6,1.09782]
[1737860959034,0.60076,3329.9,3329.6,1.09782]
[1737860959739,0.60079,3329.8,3329.6,0.497]
[1737860959939,0.00449863,3330.0,3329.6,0.497]
[1737860960146,0.60524863,3330.0,3329.7,0.60079]
[1737860961039,0.60076,3329.9,3329.7,0.60079]
[1737860961439,0.60524863,3330.0,3329.7,0.60079]
[1737860961935,0.60077,3329.9,3329.6,1.09781]
[1737860962331,0.60077,3329.9,3329.6,0.497]
[1737860962638,0.00449863,3330.0,3329.7,0.6008]
[1737860962840,0.00449863,3330.0,3329.6,0.497]
[1737860963145,0.00449863,3330.0,3329.9,0.60076]
[1737860964045,0.00449863,3330.0,3329.9,1.11736]
[1737860966544,2.979,3330.5,3330.4,0.60067]
[1737860966745,0.495,3330.8,3330.7,0.60062]
[1737860966941,0.60055,3331.1,3330.8,0.6006]
[1737860967146,5.7621531,3331.2,3330.5,1.0284]
[1737860967344,0.60056,3331.1,3330.8,0.60058]
[1737860967940,2.5543531,3331.2,3330.5,1.0284]
[1737860968252,1.09553,3331.2,3330.9,0.60057]
[1737860968647,1.09553,3331.2,3331.0,0.5118]
[1737860971652,0.60055,3331.1,3331.0,0.5118]
[1737860974052,0.60062,3330.7,3330.6,0.4922]
[1737860974353,0.60061,3330.8,3330.6,0.4922]
[1737860975155,0.60062,3330.7,3330.6,0.4922]
[1737860976357,2.5543531,3331.2,3330.6,0.4922]
[1737860976656,0.60062,3330.7,3330.6,0.4922]
[1737860977355,2.5543531,3331.2,3330.6,0.4922]
[1737860977555,2.5543531,3331.2,3330.5,0.4793]
[1737860977758,0.60061,3330.8,3330.5,1.07995]
[1737860978652,2.5543531,3331.2,3330.5,1.07995]
[1737860978859,0.60062,3330.7,3330.5,1.07995]
[1737860979052,2.5543531,3331.2,3330.5,1.07995]
[1737860979259,0.60061,3330.8,3330.5,1.07995]
[1737860980662,0.60061,3330.8,3330.6,0.60064]
[1737860980859,2.5543531,3331.2,3330.6,0.60064]
[1737860981058,0.6006,3330.9,3330.6,0.60064]
[1737860981563,0.5171,3330.8,3330.6,0.60064]
[1737860982657,0.5171,3330.8,3330.5,0.4793]
[1737860982863,0.5171,3330.8,3330.7,0.60062]
[1737860986465,0.60057,3331.0,3330.8,0.6006]
[1737860987168,1.09095,3331.1,3330.8,0.6006]
[1737860987567,0.60056,3331.0,3330.8,0.6006]
[1737860987765,0.4904,3331.1,3330.7,3.2078]
[1737860987968,1.09096,3331.1,3330.9,0.60057]
[1737860988367,1.09096,3331.1,3331.0,0.4873]
[1737860989670,2.06512461,3331.1,3331.0,0.4873]
[1737860990370,2.06512461,3331.1,3330.9,0.60057]
[1737860993471,2.06511461,3331.1,3330.9,0.60057]
[1737860995774,0.38325358,3331.0,3330.9,0.60057]
[1737860996169,2.06511461,3331.1,3330.9,0.60057]
[1737860996881,2.06511461,3331.1,3330.8,1.08789]
[1737860997283,0.38326004,3331.0,3330.8,1.08789]
[1737860997578,2.06511461,3331.1,3330.8,1.08789]
[1737860998180,0.60057,3331.0,3330.8,1.08789]
[1737860998976,0.60057,3331.0,3330.9,0.5072]
[1737861000786,2.06512461,3331.1,3330.9,1.10777]
[1737861001085,0.00449863,3331.3,3331.2,0.60053]
[1737861001277,0.00449863,3331.3,3331.2,1.57469461]
[1737861001680,0.60056,3331.0,3330.9,0.5072]
[1737861001881,0.97416461,3331.0,3330.6,3.72]
[1737861002086,0.6007,3330.3,3330.1,3.696]
[1737861002379,0.97416461,3330.2,3330.1,4.2149]
[1737861002584,1.47466461,3330.2,3330.1,3.2078]
[1737861002777,1.47466461,3330.2,3329.6,5.21006461]
[1737861002975,1.57492461,3330.0,3329.6,5.21006461]
[1737861003173,0.60076,3330.0,3329.7,0.6008]
[1737861003973,1.47466461,3330.2,3329.6,5.21006461]
[1737861004177,0.60077,3329.9,3329.6,2.60306461]
[1737861005280,1.47466461,3330.2,3329.6,5.21006461]
[1737861005486,0.60074,3330.1,3329.8,0.60077]
[1737861006585,0.60074,3330.1,3329.7,0.60079]
[1737861008677,0.60074,3330.1,3329.8,1.57494461]
[1737861008986,0.60073,3330.1,3329.8,1.57493461]
[1737861010284,0.5005,3330.2,3329.8,1.57493461]
[1737861010482,1.10122,3330.2,3329.8,1.57493461]
[1737861010789,2.56481461,3330.6,3330.3,0.60069]
[1737861011087,2.10215,3330.6,3330.2,1.57486461]
[1737861011287,2.10215,3330.6,3330.2,0.97416461]
[1737861011487,2.10215,3330.6,3330.3,0.60069]
[1737861011988,3.07631461,3330.6,3330.3,0.60069]
[1737861012190,3.07631461,3330.6,3330.2,0.5033]
[1737861012380,3.07631461,3330.6,3330.2,1.104]
[1737861012782,3.07631461,3330.6,3330.2,0.5033]
[1737861012982,2.47566461,3330.6,3330.2,0.5033]
[1737861013182,2.47566461,3330.6,3330.4,0.60067]
[1737861013589,2.47566461,3330.6,3330.3,0.60068]
[1737861013988,1.98026461,3330.6,3330.3,0.60068]
[1737861014491,1.0061,3330.6,3330.3,0.60068]
[1737861015093,1.0061,3330.6,3330.2,1.47746461]
[1737861015294,1.0061,3330.6,3330.5,0.60065]
[1737861015687,1.0061,3330.6,3330.5,1.08585]
[1737861016393,1.57476461,3330.8,3330.5,1.08585]
[1737861016692,0.4726,3330.8,3330.5,0.4852]
[1737861016884,0.4726,3330.8,3330.5,1.08584]
[1737861017587,3.95316461,3331.4,3330.6,0.97416461]
[1737861017788,1.0043,3331.4,3330.7,0.4881]
[1737861017990,1.0043,3331.4,3330.9,0.60057]
[1737861017991,3.80833,3331.2,3330.9,0.60057]
[1737861018492,3.80833,3331.2,3331.0,0.5103]
[1737861020191,3.2078,3331.2,3331.0,0.5103]
[1737861020398,0.60055,3331.1,3331.0,0.5103]
[1737861021899,3.80834,3331.2,3331.0,0.5103]
[1737861022300,3.2078,3331.2,3331.0,0.5103]
[1737861022501,0.60055,3331.1,3331.0,0.5103]
[1737861025296,3.80834,3331.2,3331.0,0.5103]
[1737861025602,0.60055,3331.1,3331.0,0.5103]
[1737861029005,3.2078,3331.2,3331.0,0.5103]
[1737861029200,0.60055,3331.1,3331.0,0.5103]
[1737861030100,3.2078,3331.2,3331.0,0.5103]
[1737861030308,0.5004,3331.4,3331.2,0.60053]
[1737861030803,1.1009,3331.4,3331.1,0.60053]
[1737861031004,1.1009,3331.4,3331.2,0.4931]
[1737861034103,0.5004,3331.4,3331.2,0.4931]
[1737861034302,0.60500863,3331.3,3331.2,0.4931]
[1737861035505,0.38673864,3331.3,3330.9,3.2078]
[1737861035807,0.60056,3331.0,3330.9,3.2078]
[1737861036306,0.60058,3330.9,3330.8,0.4916]
[1737861037009,0.00449863,3331.3,3330.6,0.9594]
[1737861037010,0.60061,3330.8,3330.6,0.9594]
[1737861037200,3.21229863,3331.3,3330.6,0.9594]
[1737861037201,0.60062,3330.7,3330.6,0.9594]
[1737861037703,3.21229863,3331.3,3330.6,0.9594]
[1737861037905,0.60059,3330.9,3330.6,1.56003]
[1737861038106,0.6006,3330.8,3330.6,1.56003]
[1737861039603,3.21229863,3331.3,3330.6,0.9594]
[1737861039812,0.60058,3330.9,3330.6,1.56003]
[1737861041204,0.60053,3331.2,3330.8,3.2078]
[1737861041407,3.21229863,3331.3,3330.9,0.60057]
[1737861041606,0.60056,3331.1,3330.8,3.80839]
[1737861041806,0.60056,3331.1,3330.9,0.60058]
[1737861042317,0.60056,3331.1,3330.8,3.2078]
[1737861042512,0.60056,3331.1,3330.8,3.80839]
[1737861042813,0.4943,3331.0,3330.8,3.80839]
[1737861043314,1.09486,3331.0,3330.8,3.80839]
[1737861044105,1.09486,3331.0,3330.8,3.2078]
[1737861044106,0.60058,3330.9,3330.8,3.2078]
[1737861044311,1.61088,3330.9,3330.8,3.2078]
[1737861046810,0.60063,3330.7,3330.4,0.60067]
[1737861047311,0.4833,3330.6,3330.3,0.4778]
[1737861047512,0.60067,3330.4,3330.3,0.4778]
[1737861047815,0.4833,3330.6,3330.2,0.4829]
[1737861048015,0.5134,3330.3,3329.9,0.9993]
[1737861048318,0.60074,3330.1,3329.9,0.9993]
[1737861048814,1.07764,3330.0,3329.9,0.9993]
[1737861049117,0.4769,3330.0,3329.9,0.9993]
[1737861049319,0.60072,3330.2,3329.9,0.9993]
[1737861049517,0.4769,3330.2,3330.0,0.60074]
[1737861049721,1.07761,3330.2,3329.9,0.9993]
[1737861050018,1.07761,3330.2,3329.9,1.60005]
[1737861052118,1.07761,3330.2,3329.9,0.9993]
[1737861052321,1.07761,3330.2,3330.0,0.60074]